fUSD/lending_fUSD_20251223
["ID","MTS","AMOUNT","RATE_DAILY","PERIOD"]
[399545596,1766473436440,-160.0,0.00042678,30]
[399545597,1766473436494,-160.0,0.00042678,30]
[399545598,1766473436547,-160.0,0.00042678,30]
[399545599,1766473436600,-186.46483,0.00042678,60]
[399545600,1766473436652,-506.71824225,0.00042678,120]
[399545601,1766473436705,-1623.79621522,0.00042678,30]
[399545602,1766473436783,-527.49,0.00042678,120]
[399545603,1766473436842,-527.49,0.00042678,120]
[399545604,1766473436901,-527.49,0.00042678,120]
[399545605,1766473436962,-527.49,0.00042678,120]
[399545606,1766473437025,-527.49,0.00042678,120]
[399545607,1766473437083,-527.49,0.00042678,120]
[399545608,1766473437140,-527.49,0.00042678,120]
[399545609,1766473437198,-527.49,0.00042678,120]
[399545610,1766473437258,-527.49,0.00042678,120]
[399545611,1766473437316,-527.49,0.00042678,120]
[399545612,1766473437377,-527.49,0.00042678,120]
[399545613,1766473437433,-527.49,0.00042678,120]
[399545614,1766473437489,-527.49,0.00042678,120]
[399545615,1766473437544,-527.49,0.00042678,120]
[399545616,1766473437599,-527.49,0.00042678,120]
[399545617,1766473437654,-527.49,0.00042678,120]
[399545618,1766473437707,-527.49,0.00042678,120]
[399545619,1766473437760,-527.49,0.00042678,120]
[399545620,1766473437812,-527.49,0.00042678,120]
[399545621,1766473437866,-527.49,0.00042678,120]
[399545622,1766473437922,-527.49,0.00042678,120]
[399545623,1766473437977,-527.49,0.00042678,120]
[399545624,1766473438033,-527.49,0.00042678,120]
[399545625,1766473438089,-527.65996411,0.00042678,120]
[399545626,1766473438143,-1000.0,0.00042678,30]
[399545627,1766473438199,-1000.0,0.00042678,60]
[399545628,1766473438254,-500.0,0.00042678,120]
[399545629,1766473438310,-500.0,0.00042678,120]
[399545630,1766473438366,-500.0,0.00042678,120]
[399545631,1766473438424,-547.47470779,0.00042678,120]
[399545632,1766473438481,-118736.85553437,0.00042678,60]
[399545633,1766473438538,-1363.21,0.00042678,120]
[399545634,1766473438598,-1205.635495,0.00042678,120]
[399545635,1766473438653,-1005.62422785,0.00042678,30]
[399545636,1766473438969,-300000.0,0.00042678,30]
[399545637,1766473439042,-400.0,0.00042678,30]
[399545638,1766473439097,-400.0,0.00042678,30]
[399545639,1766473439153,-400.0,0.00042678,30]
[399545640,1766473439210,-400.0,0.00042678,30]
[399545641,1766473439267,-400.0,0.00042678,30]
[399545642,1766473439320,-400.0,0.00042678,30]
[399545643,1766473439377,-400.0,0.00042678,30]
[399545644,1766473439432,-400.0,0.00042678,30]
[399545645,1766473439484,-400.0,0.00042678,30]
[399545646,1766473439534,-400.0,0.00042678,30]
[399545647,1766473439584,-400.0,0.00042678,30]
[399545648,1766473439639,-400.0,0.00042678,30]
[399545649,1766473439703,-400.0,0.00042678,30]
[399545650,1766473439764,-400.0,0.00042678,30]
[399545651,1766473439827,-400.0,0.00042678,30]
[399545652,1766473439891,-400.0,0.00042678,30]
[399545653,1766473439955,-374.1783105,0.00042678,30]
[399545654,1766473440018,-1985.0,0.00042678,120]
[399545655,1766473440085,-710.10786598,0.00042678,120]
[399545656,1766473440151,-539.61375881,0.00042678,30]
[399545657,1766473440216,-403.46599545,0.00042678,30]
[399545658,1766473440281,-793.15166544,0.00042678,120]
[399545659,1766473440344,-925.42722387,0.00042678,30]
[399545660,1766473440405,-1181.20225836,0.00042678,30]
[399545661,1766473440463,-164.78946589,0.00042678,30]
[399545662,1766473440522,-582.12353875,0.00042678,120]
[399545663,1766473440582,-1434.55588099,0.00042678,120]
[399545664,1766473440643,-999.93761943,0.00042678,120]
[399545665,1766473440699,-219.92433364,0.00042678,120]
[399545666,1766473440753,-2134.26256407,0.00042678,30]
[399545667,1766473440808,-1339.52888163,0.00042678,120]
[399545668,1766473440863,-780.76349086,0.00042678,30]
[399545669,1766473440920,-302.53402592,0.00042678,120]
[399545670,1766473440978,-421.81705128,0.00042678,30]
[399545671,1766473441040,-375.47052588,0.00042678,120]
[399545672,1766473441098,-2447.50775835,0.00042678,30]
[399545673,1766473441158,-1487.91642652,0.00042678,30]
[399545674,1766473441214,-892.44067336,0.00042678,120]
[399545675,1766473441272,-716.27162668,0.00042678,120]
[399545676,1766473441337,-1951.63001892,0.00042678,120]
[399545677,1766473441405,-258.3770531,0.00042678,120]
[399545678,1766473441469,-240.84644026,0.00042678,120]
[399545679,1766473441528,-573.95999597,0.00042678,120]
[399545680,1766473441582,-906.24592165,0.00042678,30]
[399545681,1766473441638,-388.66270163,0.00042678,30]
[399545682,1766473441693,-1237.61576991,0.00042678,120]
[399545683,1766473441749,-915.10296976,0.00042678,30]
[399545684,1766473441805,-397.57520846,0.00042678,120]
[399545685,1766473441862,-164.32234308,0.00042678,30]
[399545686,1766473441922,-1187.22574465,0.00042678,120]
[399545687,1766473441985,-607.07591675,0.00042678,120]
[399545688,1766473442047,-985.69572514,0.00042678,30]
[399545689,1766473442106,-2024.95822407,0.00042678,60]
[399545690,1766473442167,-510.17476775,0.00042678,120]
[399545691,1766473442225,-181.47951161,0.00042678,120]
[399545692,1766473442283,-220.59936908,0.00042678,30]
[399545693,1766473442338,-1018.60046553,0.00042678,30]
[399545694,1766473442396,-1122.07508754,0.00042678,120]
[399545695,1766473442454,-1027.98173092,0.00042678,120]
[399545696,1766473442512,-1158.61980135,0.00042678,120]
[399545697,1766473442568,-2220.99533182,0.00042678,120]
[399545698,1766473442626,-2187.19180283,0.00042678,120]
[399545699,1766473442682,-1551.17388286,0.00042678,120]
[399545700,1766473442742,-372.15584448,0.00042678,30]
[399545701,1766473442796,-1635.34327174,0.00042678,120]
[399545702,1766473442850,-207.96414915,0.00042678,30]
[399545703,1766473442905,-1026.64673407,0.00042678,120]
[399545704,1766473442962,-263.82931193,0.00042678,120]
[399545705,1766473443019,-176.39648321,0.00042678,30]
[399545706,1766473443076,-1642.84205254,0.00042678,120]
[399545707,1766473443131,-1072.19819478,0.00042678,30]
[399545708,1766473443188,-679.66860137,0.00042678,120]
[399545709,1766473443244,-1982.30251047,0.00042678,120]
[399545710,1766473443302,-670.59162786,0.00042678,120]
[399545711,1766473443360,-253.56111933,0.00042678,120]
[399545712,1766473443419,-1192.07309592,0.00042678,120]
[399545713,1766473443477,-1351.9270319,0.00042678,120]
[399545714,1766473443535,-269.70568804,0.00042678,30]
[399545715,1766473443592,-997.0,0.00042678,30]
[399545716,1766473443649,-324.54152676,0.00042678,120]
[399545717,1766473443707,-227.91433288,0.00042678,30]
[399545718,1766473443986,-466.65469679,0.00042678,120]
[399545719,1766473444050,-296.45311399,0.00042678,30]
[399545720,1766473444111,-936.29374678,0.00042678,30]
[399545721,1766473444169,-2010.72553589,0.00042678,120]
[399545722,1766473444230,-1754.74620599,0.00042678,120]
[399545723,1766473444291,-947.14717423,0.00042678,60]
[399545724,1766473444345,-266.83030229,0.00042678,120]
[399545725,1766473444402,-983.85879222,0.00042678,120]
[399545726,1766473444457,-1379.54745804,0.00042678,120]
[399545727,1766473444512,-2185.73530716,0.00042678,120]
[399545728,1766473444568,-198.89382099,0.00042678,120]
[399545729,1766473444623,-166.37657434,0.00042678,120]
[399545730,1766473444679,-277.98331619,0.00042678,30]
[399545731,1766473444735,-1451.55292909,0.00042678,120]
[399545732,1766473444790,-283.10259088,0.00042678,30]
[399545733,1766473444847,-2146.95938237,0.00042678,30]
[399545734,1766473444904,-1403.552004,0.00042678,120]
[399545735,1766473444966,-1503.04274211,0.00042678,120]
[399545736,1766473445027,-1883.15237651,0.00042678,30]
[399545737,1766473445085,-216.04262429,0.00042678,31]
[399545738,1766473445145,-2026.99580567,0.00042678,120]
[399545739,1766473445206,-651.69550565,0.00042678,120]
[399545740,1766473445264,-1566.58331908,0.00042678,30]
[399545741,1766473445317,-331.83792315,0.00042678,120]
[399545742,1766473445373,-699.79283821,0.00042678,120]
[399545743,1766473445428,-756.0,0.00042678,120]
[399545744,1766473445483,-1184.33904324,0.00042678,120]
[399545745,1766473445537,-1393.97228082,0.00042678,120]
[399545746,1766473445589,-545.33810126,0.00042678,30]
[399545747,1766473445641,-285.35116052,0.00042678,120]
[399545748,1766473445695,-173.56438991,0.00042678,120]
[399545749,1766473445746,-513.90747703,0.00042678,120]
[399545750,1766473445800,-532.7060129,0.00042678,120]
[399545751,1766473445854,-359.62777677,0.00042678,120]
[399545752,1766473445912,-506.70129602,0.00042678,120]
[399545753,1766473445980,-1054.76105928,0.00042678,120]
[399545754,1766473446042,-828.63514929,0.00042678,120]
[399545755,1766473446102,-948.09003686,0.00042678,120]
[399545756,1766473446160,-1991.45164808,0.00042678,55]
[399545757,1766473446219,-1098.5913785,0.00042678,30]
[399545758,1766473446279,-264.83828449,0.00042678,120]
[399545759,1766473446336,-1801.70067755,0.00042678,30]
[399545760,1766473446394,-1722.54069521,0.00042678,120]
[399545761,1766473446451,-1671.26657063,0.00042678,120]
[399545762,1766473446510,-196.42302365,0.00042678,120]
[399545763,1766473446567,-1046.28709621,0.00042678,120]
[399545764,1766473446622,-2043.09338649,0.00042678,120]
[399545765,1766473446677,-215.08837792,0.00042678,30]
[399545766,1766473446731,-2077.55966254,0.00042678,30]
[399545767,1766473446787,-1245.15108517,0.00042678,30]
[399545768,1766473446843,-564.51551778,0.00042678,30]
[399545769,1766473446907,-2192.441701,0.00042678,60]
[399545770,1766473446968,-827.82285255,0.00042678,120]
[399545771,1766473447026,-1198.29951662,0.00042678,120]
[399545772,1766473447085,-534.28049805,0.00042678,120]
[399545773,1766473447142,-1527.21586663,0.00042678,30]
[399545774,1766473447203,-681.24867474,0.00042678,120]
[399545775,1766473447262,-491.75746042,0.00042678,30]
[399545776,1766473447322,-500.0,0.00042678,120]
[399545777,1766473447381,-658.0,0.00042678,120]
[399545778,1766473447439,-188.5023992,0.00042678,120]
[399545779,1766473447499,-211.97160682,0.00042678,58]
[399545780,1766473447556,-1877.61632032,0.00042678,30]
[399545781,1766473447614,-2310.80640011,0.00042678,30]
[399545782,1766473447679,-242.33810499,0.00042678,30]
[399545783,1766473447742,-236.13158467,0.00042678,120]
[399545784,1766473447808,-2159.0,0.00042678,30]
[399545785,1766473447880,-384.0,0.00042678,120]
[399545786,1766473447945,-2758.0,0.00042678,30]
[399545787,1766473448009,-2758.0,0.00042678,120]
[399545788,1766473448078,-1531.0984885,0.00042678,120]
[399545789,1766473448147,-2000.0,0.00042678,120]
[399545790,1766473448218,-2637.93006097,0.00042678,60]
[399545791,1766473448284,-1534.46079277,0.00042678,120]
[399545792,1766473448348,-1701.22813032,0.00042678,120]
[399545793,1766473448412,-623.29310369,0.00042678,30]
[399545794,1766473448476,-1589.35797502,0.00042678,120]
[399545795,1766473448539,-150.01,0.00042678,120]
[399545796,1766473448601,-150.02,0.00042678,120]
[399545797,1766473448662,-150.02,0.00042678,120]
[399545798,1766473448722,-150.02,0.00042678,120]
[399545799,1766473448783,-150.02,0.00042678,120]
[399545800,1766473448846,-150.02,0.00042678,120]
[399545801,1766473448914,-150.02,0.00042678,120]
[399545802,1766473448978,-150.02,0.00042678,120]
[399545803,1766473449044,-150.02,0.00042678,120]
[399545804,1766473449110,-150.02,0.00042678,120]
[399545805,1766473449177,-150.02,0.00042678,120]
[399545806,1766473449248,-150.02,0.00042678,120]
[399545807,1766473449312,-150.02,0.00042678,120]
[399545808,1766473449377,-150.02,0.00042678,120]
[399545809,1766473449437,-150.02,0.00042678,120]
[399545810,1766473449497,-150.02,0.00042678,120]
[399545811,1766473449555,-150.02,0.00042678,120]
[399545812,1766473449614,-150.02,0.00042678,120]
[399545813,1766473449676,-150.02,0.00042678,120]
[399545814,1766473450013,-150.02,0.00042678,120]
[399545815,1766473450077,-150.02,0.00042678,120]
[399545816,1766473450140,-150.02,0.00042678,120]
[399545817,1766473450202,-150.02,0.00042678,120]
[399545818,1766473450279,-150.02,0.00042678,120]
[399545819,1766473450339,-150.02,0.00042678,120]
[399545820,1766473450400,-150.02,0.00042678,120]
[399545821,1766473450459,-150.02,0.00042678,120]
[399545822,1766473450518,-150.02,0.00042678,120]
[399545823,1766473450577,-150.02,0.00042678,120]
[399545824,1766473450634,-150.02,0.00042678,120]
[399545825,1766473450690,-150.02,0.00042678,120]
[399545826,1766473450744,-150.02,0.00042678,120]
[399545827,1766473450799,-150.02,0.00042678,120]
[399545828,1766473450859,-150.02,0.00042678,120]
[399545829,1766473450916,-150.02,0.00042678,120]
[399545830,1766473450977,-150.02,0.00042678,120]
[399545831,1766473451041,-150.02,0.00042678,120]
[399545832,1766473451103,-150.02,0.00042678,120]
[399545833,1766473451167,-150.02,0.00042678,120]
[399545834,1766473451225,-150.02,0.00042678,120]
[399545835,1766473451282,-150.02,0.00042678,120]
[399545836,1766473451337,-150.02,0.00042678,120]
[399545837,1766473451396,-150.02,0.00042678,120]
[399545838,1766473451454,-150.02,0.00042678,120]
[399545839,1766473451509,-150.02,0.00042678,120]
[399545840,1766473451563,-150.02,0.00042678,120]
[399545841,1766473451619,-150.02,0.00042678,120]
[399545842,1766473451675,-150.02,0.00042678,120]
[399545843,1766473451731,-150.02,0.00042678,120]
[399545844,1766473451788,-150.02,0.00042678,120]
[399545845,1766473451845,-150.02,0.00042678,120]
[399545846,1766473451907,-150.02,0.00042678,120]
[399545847,1766473451975,-150.02,0.00042678,120]
[399545848,1766473452034,-150.02,0.00042678,120]
[399545849,1766473452093,-150.02,0.00042678,120]
[399545850,1766473452154,-150.02,0.00042678,120]
[399545851,1766473452215,-150.02,0.00042678,120]
[399545852,1766473452275,-150.02,0.00042678,120]
[399545853,1766473452338,-150.02,0.00042678,120]
[399545854,1766473452403,-150.02,0.00042678,120]
[399545855,1766473452470,-150.02,0.00042678,120]
[399545856,1766473452534,-282.02,0.00042678,120]
[399545857,1766473452594,-150.02,0.00042678,120]
[399545858,1766473452651,-150.02,0.00042678,120]
[399545859,1766473452706,-150.02,0.00042678,120]
[399545860,1766473452761,-150.02,0.00042678,120]
[399545861,1766473452814,-150.02,0.00042678,120]
[399545862,1766473452869,-150.02,0.00042678,120]
[399545863,1766473452929,-150.02,0.00042678,120]
[399545864,1766473452992,-150.02,0.00042678,120]
[399545865,1766473453063,-150.02,0.00042678,120]
[399545866,1766473453119,-150.02,0.00042678,120]
[399545867,1766473453177,-150.02,0.00042678,120]
[399545868,1766473453237,-150.02,0.00042678,120]
[399545869,1766473453298,-150.02,0.00042678,120]
[399545870,1766473453357,-150.02,0.00042678,120]
[399545871,1766473453415,-150.02,0.00042678,120]
[399545872,1766473453474,-150.02,0.00042678,120]
[399545873,1766473453533,-150.02,0.00042678,120]
[399545874,1766473453585,-150.02,0.00042678,120]
[399545875,1766473453640,-150.02,0.00042678,120]
[399545876,1766473453696,-150.02,0.00042678,120]
[399545877,1766473453751,-150.02,0.00042678,120]
[399545878,1766473453806,-150.02,0.00042678,120]
[399545879,1766473453863,-150.02,0.00042678,120]
[399545880,1766473453923,-150.02,0.00042678,120]
[399545881,1766473453980,-150.02,0.00042678,120]
[399545882,1766473454043,-150.02,0.00042678,120]
[399545883,1766473454115,-150.02,0.00042678,120]
[399545884,1766473454174,-150.02,0.00042678,120]
[399545885,1766473454233,-150.02,0.00042678,120]
[399545886,1766473454291,-150.02,0.00042678,120]
[399545887,1766473454348,-150.02,0.00042678,120]
[399545888,1766473454409,-150.02,0.00042678,120]
[399545889,1766473454470,-150.02,0.00042678,120]
[399545890,1766473454528,-150.02,0.00042678,120]
[399545891,1766473454586,-150.02,0.00042678,120]
[399545892,1766473454643,-150.02,0.00042678,120]
[399545893,1766473454701,-150.02,0.00042678,120]
[399545894,1766473454758,-150.02,0.00042678,120]
[399545895,1766473454814,-150.02,0.00042678,120]
[399545896,1766473454872,-150.02,0.00042678,120]
[399545897,1766473454930,-150.02,0.00042678,120]
[399545898,1766473454988,-150.02,0.00042678,120]
[399545899,1766473455050,-150.02,0.00042678,120]
[399545900,1766473455109,-150.02,0.00042678,120]
[399545901,1766473455168,-150.02,0.00042678,120]
[399545902,1766473455226,-150.02,0.00042678,120]
[399545903,1766473455287,-150.02,0.00042678,120]
[399545904,1766473455346,-150.02,0.00042678,120]
[399545905,1766473455405,-150.02,0.00042678,120]
[399545906,1766473455463,-150.02,0.00042678,120]
[399545907,1766473455518,-150.02,0.00042678,120]
[399545908,1766473455573,-150.02,0.00042678,120]
[399545909,1766473455878,-150.02,0.00042678,120]
[399545910,1766473455947,-150.02,0.00042678,120]
[399545911,1766473456014,-150.02,0.00042678,120]
[399545912,1766473456076,-150.02,0.00042678,120]
[399545913,1766473456136,-150.02,0.00042678,120]
[399545914,1766473456196,-150.02,0.00042678,120]
[399545915,1766473456259,-150.02,0.00042678,120]
[399545916,1766473456318,-150.02,0.00042678,120]
[399545917,1766473456379,-150.02,0.00042678,120]
[399545918,1766473456438,-150.02,0.00042678,120]
[399545919,1766473456497,-150.02,0.00042678,120]
[399545920,1766473456554,-150.02,0.00042678,120]
[399545921,1766473456612,-150.02,0.00042678,120]
[399545922,1766473456672,-150.02,0.00042678,120]
[399545923,1766473456730,-150.02,0.00042678,120]
[399545924,1766473456788,-150.02,0.00042678,120]
[399545925,1766473456848,-150.02,0.00042678,120]
[399545926,1766473456907,-150.02,0.00042678,120]
[399545927,1766473456970,-150.02,0.00042678,120]
[399545928,1766473457031,-150.02,0.00042678,120]
[399545929,1766473457092,-150.02,0.00042678,120]
[399545930,1766473457156,-150.02,0.00042678,120]
[399545931,1766473457222,-150.02,0.00042678,120]
[399545932,1766473457286,-150.02,0.00042678,120]
[399545933,1766473457350,-150.02,0.00042678,120]
[399545934,1766473457416,-150.02,0.00042678,120]
[399545935,1766473457479,-150.02,0.00042678,120]
[399545936,1766473457544,-150.02,0.00042678,120]
[399545937,1766473457606,-283.02,0.00042678,120]
[399545938,1766473457667,-40876.336636,0.00042678,45]
[399545939,1766473457729,-500.0,0.00042678,120]
[399545940,1766473457793,-500.0,0.00042678,120]
[399545941,1766473457858,-500.0,0.00042678,120]
[399545942,1766473457924,-303.49722586,0.00042678,120]
[399545943,1766473457990,-1024.09,0.00042678,120]
[399545944,1766473458059,-1024.09,0.00042678,120]
[399545945,1766473458124,-1024.09,0.00042678,120]
[399545946,1766473458189,-1024.09,0.00042678,120]
[399545947,1766473458253,-1024.09,0.00042678,120]
[399545948,1766473458313,-1024.09,0.00042678,120]
[399545949,1766473458373,-1024.09,0.00042678,120]
[399545950,1766473458435,-1024.09,0.00042678,120]
[399545951,1766473458495,-1024.09,0.00042678,120]
[399545952,1766473458557,-1024.09,0.00042678,120]
[399545953,1766473458617,-1024.09,0.00042678,120]
[399545954,1766473458675,-1024.09,0.00042678,120]
[399545955,1766473458731,-1024.09,0.00042678,120]
[399545956,1766473458788,-1024.09,0.00042678,120]
[399545957,1766473458845,-1024.09,0.00042678,120]
[399545958,1766473458906,-1024.09,0.00042678,120]
[399545959,1766473458968,-1024.09,0.00042678,120]
[399545960,1766473459028,-1024.09,0.00042678,120]
[399545961,1766473459089,-1024.09,0.00042678,120]
[399545962,1766473459151,-1024.09,0.00042678,120]
[399545963,1766473459212,-1024.09,0.00042678,120]
[399545964,1766473459273,-1024.09,0.00042678,120]
[399545965,1766473459334,-1024.09,0.00042678,120]
[399545966,1766473459395,-1024.18835069,0.00042678,120]
[399545967,1766473459456,-500.0,0.00042678,120]
[399545968,1766473459514,-500.0,0.00042678,120]
[399545969,1766473459573,-239.17706856,0.00042678,120]
[399545970,1766473459628,-500.0,0.00042678,120]
[399545971,1766473459685,-316.87219866,0.00042678,120]
[399545972,1766473459746,-500.0,0.00042678,120]
[399545973,1766473459805,-500.0,0.00042678,120]
[399545974,1766473459865,-500.0,0.00042678,120]
[399545975,1766473459929,-500.0,0.00042678,120]
[399545976,1766473459993,-500.0,0.00042678,120]
[399545977,1766473460058,-500.0,0.00042678,120]
[399545978,1766473460122,-500.0,0.00042678,120]
[399545979,1766473460185,-500.0,0.00042678,120]
[399545980,1766473460248,-500.0,0.00042678,120]
[399545981,1766473460310,-520.30956918,0.00042678,120]
[399545982,1766473460367,-500.0,0.00042678,120]
[399545983,1766473460424,-500.0,0.00042678,120]
[399545984,1766473460481,-500.0,0.00042678,120]
[399545985,1766473460535,-500.0,0.00042678,120]
[399545986,1766473460588,-500.0,0.00042678,120]
[399545987,1766473460644,-500.0,0.00042678,120]
[399545988,1766473460701,-467.7804257,0.00042678,120]
[399545989,1766473460755,-500.0,0.00042678,120]
[399545990,1766473460805,-500.0,0.00042678,120]
[399545991,1766473460858,-500.0,0.00042678,120]
[399545992,1766473460909,-500.0,0.00042678,120]
[399545993,1766473460968,-500.0,0.00042678,120]
[399545994,1766473461022,-500.0,0.00042678,120]
[399545995,1766473461077,-500.0,0.00042678,120]
[399545996,1766473461131,-500.0,0.00042678,120]
[399545997,1766473461187,-500.0,0.00042678,120]
[399545998,1766473461243,-500.0,0.00042678,120]
[399545999,1766473461293,-540.85504254,0.00042678,120]
[399546000,1766473461346,-500.0,0.00042678,120]
[399546001,1766473461403,-500.0,0.00042678,120]
[399546002,1766473461461,-500.0,0.00042678,120]
[399546003,1766473461728,-500.0,0.00042678,120]
[399546004,1766473461783,-500.0,0.00042678,120]
[399546005,1766473461840,-500.0,0.00042678,120]
[399546006,1766473461904,-500.0,0.00042678,120]
[399546007,1766473461967,-344.71860262,0.00042678,120]
[399546008,1766473462022,-500.0,0.00042678,120]
[399546009,1766473462078,-500.0,0.00042678,120]
[399546010,1766473462132,-500.0,0.00042678,120]
[399546011,1766473462190,-500.0,0.00042678,120]
[399546012,1766473462248,-500.0,0.00042678,120]
[399546013,1766473462305,-500.0,0.00042678,120]
[399546014,1766473462363,-500.0,0.00042678,120]
[399546015,1766473462423,-500.0,0.00042678,120]
[399546016,1766473462483,-500.0,0.00042678,120]
[399546017,1766473462540,-500.0,0.00042678,120]
[399546018,1766473462599,-456.10633048,0.00042678,120]
[399546019,1766473462657,-500.0,0.00042678,120]
[399546020,1766473462711,-500.0,0.00042678,120]
[399546021,1766473462768,-500.0,0.00042678,120]
[399546022,1766473462821,-500.0,0.00042678,120]
[399546023,1766473462876,-500.0,0.00042678,120]
[399546024,1766473462930,-500.0,0.00042678,120]
[399546025,1766473462986,-500.0,0.00042678,120]
[399546026,1766473463044,-500.0,0.00042678,120]
[399546027,1766473463100,-500.0,0.00042678,120]
[399546028,1766473463154,-500.0,0.00042678,120]
[399546029,1766473463210,-500.0,0.00042678,120]
[399546030,1766473463264,-500.0,0.00042678,120]
[399546031,1766473463319,-500.0,0.00042678,120]
[399546032,1766473463375,-500.0,0.00042678,120]
[399546033,1766473463429,-500.0,0.00042678,120]
[399546034,1766473463483,-500.0,0.00042678,120]
[399546035,1766473463536,-500.0,0.00042678,120]
[399546036,1766473463591,-500.0,0.00042678,120]
[399546037,1766473463649,-500.0,0.00042678,120]
[399546038,1766473463713,-500.0,0.00042678,120]
[399546039,1766473463777,-500.0,0.00042678,120]
[399546040,1766473463842,-359.26691859,0.00042678,120]
[399546041,1766473463908,-509.77376528,0.00042678,120]
[399546042,1766473463979,-592.78812514,0.00042678,120]
[399546043,1766473464043,-500.0,0.00042678,120]
[399546044,1766473464105,-500.0,0.00042678,120]
[399546045,1766473464167,-500.0,0.00042678,120]
[399546046,1766473464244,-500.0,0.00042678,120]
[399546047,1766473464314,-500.0,0.00042678,120]
[399546048,1766473464375,-500.0,0.00042678,120]
[399546049,1766473464439,-500.0,0.00042678,120]
[399546050,1766473464499,-500.0,0.00042678,120]
[399546051,1766473464558,-500.0,0.00042678,120]
[399546052,1766473464618,-500.0,0.00042678,120]
[399546053,1766473464682,-500.0,0.00042678,120]
[399546054,1766473464743,-500.0,0.00042678,120]
[399546055,1766473464802,-500.0,0.00042678,120]
[399546056,1766473464863,-500.0,0.00042678,120]
[399546057,1766473464926,-500.0,0.00042678,120]
[399546058,1766473464990,-362.59354185,0.00042678,120]
[399546059,1766473465059,-500.0,0.00042678,120]
[399546060,1766473465125,-500.0,0.00042678,120]
[399546061,1766473465189,-500.0,0.00042678,120]
[399546062,1766473465255,-500.0,0.00042678,120]
[399546063,1766473465317,-500.0,0.00042678,120]
[399546064,1766473465376,-500.0,0.00042678,120]
[399546065,1766473465437,-500.0,0.00042678,120]
[399546066,1766473465496,-500.0,0.00042678,120]
[399546067,1766473465554,-500.0,0.00042678,120]
[399546068,1766473465612,-500.0,0.00042678,120]
[399546069,1766473465668,-500.0,0.00042678,120]
[399546070,1766473465727,-500.0,0.00042678,120]
[399546071,1766473465781,-500.0,0.00042678,120]
[399546072,1766473465838,-500.0,0.00042678,120]
[399546073,1766473465897,-500.0,0.00042678,120]
[399546074,1766473465959,-500.0,0.00042678,120]
[399546075,1766473466017,-500.0,0.00042678,120]
[399546076,1766473466078,-500.0,0.00042678,120]
[399546077,1766473466135,-500.0,0.00042678,120]
[399546078,1766473466197,-500.0,0.00042678,120]
[399546079,1766473466265,-500.0,0.00042678,120]
[399546080,1766473466333,-500.0,0.00042678,120]
[399546081,1766473466394,-500.0,0.00042678,120]
[399546082,1766473466454,-648.32,0.00042678,120]
[399546083,1766473466518,-500.0,0.00042678,120]
[399546084,1766473466581,-500.0,0.00042678,120]
[399546085,1766473466641,-500.0,0.00042678,120]
[399546086,1766473466702,-648.32,0.00042678,120]
[399546087,1766473466771,-500.0,0.00042678,120]
[399546088,1766473466835,-500.0,0.00042678,120]
[399546089,1766473466897,-500.0,0.00042678,120]
[399546090,1766473466963,-648.32,0.00042678,120]
[399546091,1766473467026,-500.0,0.00042678,120]
[399546092,1766473467091,-383.74747683,0.00042678,120]
[399546093,1766473467158,-561.91645329,0.00042678,120]
[399546094,1766473467224,-648.32,0.00042678,120]
[399546095,1766473467289,-637.05,0.00042678,120]